Cogmind - Beta 17 @@@ ROGUE MODE // 2026.06.23 @ 16:37:44 Player: Bulbasornado Result: Destroyed by Y-45 Defender with Beam Rifle Performance ------------- Evolutions (0) 0 Regions Visited (2) 400 Robots Destroyed (35) 175 Value Destroyed (740) 740 Prototype IDs (6) 120 Alien Tech Used (0) 0 Bonus (0) 0 TOTAL SCORE: 1435 Bonus ------- None Cogmind --------- Core Integrity 0/250 Matter 290/300 Energy 228/250 System Corruption 2% Temperature Cool (14) Movement Treading (160) Location -10/Mines Parts ------- > --- POWER (1) -------- Ion Engine > --- PROPULSION (2) --- Light Treads Aluminum Leg > --- UTILITY (2) ------ Improved Heat Sink Small Storage Unit > --- WEAPON (2) ------- Advanced Beam Cannon Light Assault Rifle > --- INVENTORY (8) ---- Ion Engine Structural Scanner Signal Interpreter Hacking Suite Advanced Beam Cannon Light Assault Rifle Mini Grenade Launcher Datajack Peak State ------------ > --- POWER ------------ Light Ion Engine > --- PROPULSION ------- Light Treads Light Treads > --- UTILITY ---------- Disposable Heat Sink Small Storage Unit > --- WEAPON ----------- Advanced Beam Cannon Advanced Beam Cannon > --- INVENTORY -------- Ion Engine Aluminum Leg Aluminum Leg Seismic Detector Hacking Suite Light Assault Rifle Mini Grenade Launcher Mini Grenade Launcher [Rating: 13] Favorites ----------- Power Ion Engine Engine Ion Engine Propulsion Light Treads Treads Light Treads Leg Aluminum Leg Utility Small Storage Unit Device Heat Sink Storage Small Storage Unit Processor Targeting Computer Weapon Advanced Beam Cannon Energy Gun EM Pulse Gun Energy Cannon Advanced Beam Cannon Ballistic Gun Light Assault Rifle Build | -11 -10 -10 ------- Run | Yrd Mat Min Slots Evolved . | . . . Power . | . . . Propulsion . | . . . Utility . | . . . Weapon . | . . . Parts Attached 31 | 6 22 3 Power 7 | 1 6 . Engine 7 | 1 6 . Core . | . . . Reactor . | . . . Propulsion 6 | 2 2 2 Treads 4 | 2 2 . Leg 2 | . . 2 Wheel . | . . . Hover . | . . . Flight . | . . . Utility 8 | 1 6 1 Device 5 | 1 3 1 Storage 1 | . 1 . Processor 2 | . 2 . Hackware . | . . . Protection . | . . . Artifact . | . . . Weapon 10 | 2 8 . Energy Gun 1 | 1 . . Energy Cannon 4 | . 4 . Ballistic Gun 5 | 1 4 . Ballistic Cannon . | . . . Launcher . | . . . Special Weapon . | . . . Impact Weapon . | . . . Slashing Weapon . | . . . Piercing Weapon . | . . . Special Melee Weapon . | . . . Unidentified Prototypes 1 | . 1 . Parts Lost 3 | . 2 1 Power 1 | . 1 . Propulsion 2 | . 1 1 Utility . | . . . Weapon . | . . . Highest Loss Streak 1 | . 1 1 To Critical Strikes . | . . . Average Backups 7 | 3 7 8 Power . | 1 . 1 Propulsion 1 | 1 1 . Utility 2 | . 2 3 Weapon 2 | . 2 3 Tool/Special . | . . . Unused Backups 11 | 1 5 5 Power 1 | 1 . . Propulsion 3 | . 3 . Utility 3 | . . 3 Weapon 3 | . 2 1 Tool/Special 1 | . . 1 Average Slot Usage (%) 98 | . 98 98 Engine 13 | . 13 14 Treads 26 | . 28 14 Leg 1 | . . 12 Device 13 | . 13 14 Storage 12 | . 12 14 Energy Gun 1 | . 2 . Energy Cannon 15 | . 15 14 Ballistic Gun 10 | . 10 14 Peak Build Rating 13 | 6 13 12 Average Rating 10 | 4 10 11 On Entrance 5 | . 6 10 Avg Prop Armor Cover (%) 14 | 22 21 8 Naked Turns . | . . . Heaviest Build 19 | 7 19 16 Greatest Support 40 | 40 40 20 Greatest Overweight (x) 4 | 2 4 . Average Overweight (x) . | . . . Largest Inventory Capacity 8 | 5 8 8 Average Capacity 7 | 5 7 8 Most Carried 8 | 5 8 8 Average Carried 7 | 4 7 8 Final Capacity 8 | 5 8 8 Final Carried 8 | 5 8 8 Class Distribution -------------------- 52% | Scavenger-Mutant 47% | Mutant Dominant Class ---------------- Mutant | -10/Materials Scavenger-Mutant | -10/Mines Resources | -11 -10 -10 ----------- Run | Yrd Mat Min Matter Collected 705 | 265 399 41 Remotely . | . . . Salvage Created 1342 | 93 1152 97 Parts 67 | 5 56 6 Haulers Intercepted 2 | . 2 . Recyclers Shooed 4 | . 4 . Parts Field Recycled . | . . . Retrieved Matter . | . . . Parts Self-Destructed . | . . . Prevented . | . . . Parts Restored . | . . . Kills | -11 -10 -10 ------- Run | Yrd Mat Min Combat Hostiles Destroyed 23 | . 21 2 Guns 6 | . 5 1 Cannons 17 | . 16 1 Classes Destroyed 8 | 2 6 . Builder 1 | . 1 . Tunneler 1 | 1 . . Hauler 2 | . 2 . Recycler 5 | 1 4 . Operator 1 | . 1 . Watcher 2 | . 2 . Swarmer 8 | . 8 . Grunt 15 | . 13 2 Best Kill Streak 8 | 2 8 2 Combat Bots Only 8 | . 8 2 Max Kills in Single Turn 1 | 1 1 1 Gunslinging . | . . . Exploded . | . . . Melee . | . . . Uniques/NPCs Destroyed . | . . . Combat | -11 -10 -10 -------- Run | Yrd Mat Min Hostile Shots Fired 159 | . 133 26 Missed 37 | . 29 8 Hits 122 | . 104 18 Projectile 122 | . 104 18 Critical Strikes 1 | . 1 . Damage Taken 1344 | . 1103 241 Core 260 | . 215 45 Absorbed by Shields . | . . . Regen/Repaired (Parts) 7 | . 7 . Core Remaining (%) 100 | 100 . . Volleys Fired 118 | 9 99 10 Largest 2 | 2 2 2 Hottest 136 | 60 136 88 Shots Fired 213 | 14 180 19 Gun 123 | 14 100 9 Cannon 90 | . 80 10 Launcher . | . . . Special . | . . . Kinetic 95 | 5 81 9 Thermal 90 | . 80 10 Explosive . | . . . Electromagnetic 28 | 9 19 . Robot Hit Streak 14 | 2 14 10 Robot Miss Streak 3 | 3 3 1 Penetration Max . | . . . Secondary Targets . | . . . Shots Hit Robots 135 | 6 113 16 Core Hits 58 | 5 49 4 Critical Kills . | . . . Critical Parts Destroyed . | . . . Critical Strikes . | . . . Melee Attacks . | . . . Impact . | . . . Slashing . | . . . Piercing . | . . . Sneak Attacks . | . . . Combat Hostiles . | . . . Follow-up Attacks . | . . . Damage Inflicted 2327 | 149 1926 252 Guns 717 | 102 551 64 Cannons 1404 | . 1216 188 Explosions 192 | 47 145 . Melee . | . . . Ramming 14 | . 14 . Kinetic 437 | 35 338 64 Thermal 1596 | 47 1361 188 Explosive . | . . . Electromagnetic 280 | 67 213 . Impact . | . . . Slashing . | . . . Piercing . | . . . Highest Corruption 2 | . 2 2 Average Corruption 2 | . 2 2 Corruption Purged . | . . . Corruption Blocked . | . . . Effects 27 | . 23 4 Message Errors 5 | . 5 . Matter Fused 10 | . 8 2 Heat Flow Errors 2 | . 2 . Energy Discharges 3 | . 3 . Data Loss (minor) 3 | . 2 1 Data Loss (major) 2 | . 2 . Misfires 1 | . 1 . Weapon Failures 1 | . . 1 Overload Shots . | . . . Overflow Damage 32 | . 21 11 Projectiles 25 | . 14 11 Explosions 7 | . 7 . Melee . | . . . Knockbacks . | . . . Impact . | . . . Kinetic . | . . . Secondary . | . . . Self-Inflicted Damage 31 | . 31 . Shots 1 | . 1 . Rammed 6 | . 6 . Targets Rammed 7 | . 7 . Kicked . | . . . Crushed 1 | . 1 . Highest Temperature 277 | 20 277 46 Average Temperature 74 | 9 80 15 Received Heat Transfer 540 | . 450 90 Siege Activations . | . . . Martial Activations . | . . . Shielding Activations . | . . . Robots Disrupted . | . . . Combat Hostiles . | . . . Robots Corrupted . | . . . Combat Hostiles . | . . . Parts Fried . | . . . Impact Corruptions . | . . . Robots Melted . | . . . Combat Hostiles . | . . . Parts Melted 4 | . 4 . Heat Transferred 2655 | . 2322 333 Parts Sabotaged . | . . . Parts Stolen . | . . . Parts Stripped . | . . . Power Chain Reactions 3 | 1 2 . Alert | -11 -10 -10 ------- Run | Yrd Mat Min Maximum Alert Level 1 | . 1 . Low Security (%) 62 | 100 55 100 Level 1 37 | . 44 . Level 2 . | . . . Level 3 . | . . . Level 4 . | . . . Level 5 . | . . . High Security . | . . . Max Security . | . . . Peak Influence 318 | 10 318 155 Initial 115 | . . 115 Average 124 | . 136 88 Influence Increases 772 | 10 712 50 Destroy 0b10 Robot/C 460 | . 420 40 Destroy 0b10 Robot/NC 60 | 10 50 . Destroy Leader 98 | . 88 10 Successful Hack 10 | . 10 . Select Force Hacks 60 | . 60 . Disable Machine 45 | . 45 . Destroy Structure 9 | . 9 . Lose Combat Pursuer 30 | . 30 . Influence Decreases 757 | 10 414 333 Entered New Map 183 | . . 183 Time Decay 544 | 10 394 140 Lost Part 30 | . 20 10 Squads Dispatched 6 | . 5 1 Investigation 6 | . 5 1 Extermination . | . . . Reinforcement . | . . . Assault . | . . . Garrison . | . . . Intercept . | . . . Searches Triggered . | . . . Construction Impeded . | . . . Haulers Reinforced . | . . . Active Scanning Responses . | . . . Cargo Convoy Interrupts . | . . . Stealth | -11 -10 -10 --------- Run | Yrd Mat Min Distress Signals 1 | . 1 . Communications Jammed . | . . . Distress Signals . | . . . Times Spotted 39 | . 34 5 Peak Tracking Total 5 | . 5 3 Tactical Retreats 2 | . 2 . Traps | -11 -10 -10 ------- Run | Yrd Mat Min Traps Triggered 3 | . 3 . Indirectly . | . . . Trap Hack Attempts . | . . . Triggered . | . . . Disarmed . | . . . Reprogrammed . | . . . Reused . | . . . Traps Extracted . | . . . Installed . | . . . Triggered . | . . . Machines | -11 -10 -10 ---------- Run | Yrd Mat Min Machines Disabled 3 | . 3 . Max in Single Turn 1 | . 1 . Machines Repaired . | . . . Machines Dismantled . | . . . Machines Sabotaged . | . . . Overloaded Fab Kills . | . . . Hacking | -11 -10 -10 --------- Run | Yrd Mat Min Machines Accessed 12 | . 11 1 Terminals 8 | . 8 . Fabricators . | . . . Repair Stations 1 | . 1 . Recycling Units 2 | . 2 . Scanalyzers . | . . . Garrison Access . | . . . Total Hacks 41 | . 40 1 Successful 19 | . 18 1 Failed 22 | . 22 . Catastrophic 3 | . 3 . Database Lockouts . | . . . Manual 23 | . 23 . Terminals 28 | . 28 . Fabricators . | . . . Repair Stations 2 | . 2 . Recycling Units 10 | . 10 . Scanalyzers . | . . . Garrison Access . | . . . Terminal Hacks 9 | . 8 1 Robot Analysis 2 | . 2 . Prototype ID Bank 3 | . 3 . Open Door 1 | . . 1 Locate Traps 3 | . 3 . Fabricator Hacks . | . . . Repair Station Hacks 2 | . 2 . Scan Component 1 | . 1 . Repair 1 | . 1 . Recycling Unit Hacks 3 | . 3 . Report Inventory 2 | . 2 . Retrieve Components 1 | . 1 . Scanalyzer . | . . . Garrison Access Hacks . | . . . Unauthorized Hacks 5 | . 5 . Terminals 2 | . 2 . Botnet 1 | . 1 . Disrupt 1 | . 1 . Fabricators . | . . . Repair Stations . | . . . Recycling Units 3 | . 3 . Recyclers 1 | . 1 . Tunnel 2 | . 2 . Scanalyzers . | . . . Garrison Access . | . . . Data Cores Recovered 1 | . 1 . Used . | . . . Hacking Detections 9 | . 9 . Full Trace Events 2 | . 2 . Feedback Events . | . . . Feedback Blocked . | . . . Robot Schematics Acquired . | . . . Robots Built . | . . . Authchips . | . . . Time . | . . . Total Robot Build Rating . | . . . Part Schematics Acquired . | . . . Parts Built . | . . . Authchips . | . . . Time . | . . . Total Part Build Rating . | . . . Part Studies Acquired . | . . . Parts Repaired 1 | . 1 . Time 36 | . 36 . Parts Recycled . | . . . Recycled Matter . | . . . Retrieved Matter . | . . . Retrieved Components 9 | . 9 . Parts Scanalyzed . | . . . Part Schematics Acquired . | . . . Parts Damaged . | . . . Bothacking | -11 -10 -10 ------------ Run | Yrd Mat Min Used RIF Installer . | . . . Robots Hacked . | . . . Non-combat . | . . . Combat . | . . . Robot Hacks Applied . | . . . Relay Couplers Released . | . . . Fabnet Peak Effective % . | . . . Robots Rewired . | . . . Allies Hacked . | . . . Hacks Repelled . | . . . Allies | -11 -10 -10 -------- Run | Yrd Mat Min Total Allies . | . . . Largest Group . | . . . Highest-Rated Group . | . . . Highest-Rated Ally . | . . . Total Orders . | . . . Ally Attacks . | . . . Total Damage . | . . . Kills . | . . . Allies Corrupted . | . . . Allies Melted . | . . . Intel | -11 -10 -10 ------- Run | Yrd Mat Min Active Infowar (turns) 372 | 20 352 . Seismic 371 | 20 351 . T.N.C. 1 | . 1 . Robot Analysis Total 2 | . 2 . Derelict Logs Recovered 1 | . . 1 Drone Launches . | . . . Drone Recoveries . | . . . Exploration | -11 -10 -10 ------------- Run | Yrd Mat Min Turns Passed 2478 | 125 2073 280 Spaces Moved 1174 | 61 958 155 Core 152 | 21 131 . Treads 1022 | 40 827 155 Legs . | . . . Wheels . | . . . Hover . | . . . Flight . | . . . Fastest Speed 50 | 50 150 160 Average Speed 160 | 145 161 160 Slowest Speed 250 | 160 250 160 Overloaded Moves . | . . . Propulsion Burnouts . | . . . Robots Hopped . | . . . Potential Cave-ins . | . . . Cave-ins Triggered . | . . . Exploration Rate (%) 50 | 4 99 48 Regions Visited 2 Branch Regions 1 Pre-discovered Areas 2 | . 2 . Known Exits Taken . | . . . Unknown Exits Taken 2 | 1 1 . Scrap Searched . | . . . Spaces Dug . | . . . Terrain Destroyed 15 | 7 8 . Melee . | . . . Projectile . | . . . AOE 15 | 7 8 . Terrain Rammed . | . . . Walls Destroyed . | . . . Machines Disabled . | . . . Actions | -11 -10 -10 --------- Run | Yrd Mat Min Total 1575 | 82 1322 171 Wait 195 | . 194 1 Move 1172 | 60 957 155 Hop . | . . . Pick Up 20 | 6 14 . Fast Attach 16 | 6 9 1 Attach 2 | . 2 . Detach 3 | . 3 . Swap 18 | . 16 2 Drop 24 | 1 21 2 Fire 118 | 9 99 10 Melee . | . . . Ram . | . . . Kick . | . . . Crush 7 | . 7 . Escape Stasis . | . . . Rewire . | . . . Trap . | . . . Miscellaneous . | . . . Route ------- -11/Scrapyard -10/Materials (discovered 5 exits: [*Mat x3] / *Min / [*Sub]) -10/Mines History --------- Turn | Location | Event 26 | -11/Scrapyard | Discovered new exit (range 15) 126 | -11/Scrapyard | Entered Materials 328 | -10/Materials | Build established: Mutant 409 | -10/Materials | Repaired Corrupted Hover Unit? 519 | -10/Materials | Discovered new exit (range 10) 742 | -10/Materials | Discovered new exit (range 16) 1072 | -10/Materials | Destroyed 8 combat bots 1214 | -10/Materials | Discovered new exit (range 4) 1291 | -10/Materials | Discovered new exit (range 14) 1476 | -10/Materials | Core integrity fell below 50% 1485 | -10/Materials | Build established: Scavenger-Mutant 1933 | -10/Materials | Core integrity fell below 20% 2116 | -10/Materials | Discovered new exit (range 7) 2199 | -10/Materials | Entered Mines 2257 | -10/Mines | Received a Rocket Launcher from a helpful Derelict 2362 | -10/Mines | Learned Materials trap positions 2408 | -10/Mines | Met a Derelict shopkeep closing up shop 2479 | -10/Mines | Destroyed by Y-45 Defender with Beam Rifle Last Messages --------------- I say!" 02257_ 1Q-BH1(g): "Would you like a rocket launcher? I know I would if I were you, so I'm going to lend you mine." 02257_ 1Q-BH1(g) slips back into the shadows. 02295_ K-01 Serf collects debris. 02310_ System corrupted: Matter fused (-5). 02312_ K-01 Serf collects debris. 02348_ System corrupted: Component data lost. 02362_ Acquired derelict log, extracted data. Data stored: Materials trap records. 02407_ Connecting with SHOP.Sys... 02407_ Current location identified: Mines >>Open Door Sealed Doors opened. 02408_ TV-YY3(g): "Sorry, the Unaware have moved into these parts and I'm closing up shop. No more sales from me!" 02410_ ALERT: Derelict activity detected in mines. Dispatching investigation squad. 02412_ TV-YY3(g): "Well, take what you want I guess, I've had enough of this place!" 02448_ TV-YY3(g) suffers critical hit (Burn). 02475_ Destroyed Heat Sink. Map ----- +----------------------------------------------------+ | ??????????????????????????## ##??????????????? | | ?????????????????????????## ??????########?? | | ????????????????????????## ???????#""""""#?? | | ????????????????????????# ????????!!]!!!??? | | ????????????????????????# ?????????# #??? | | ????????????????????????# ??????????#! !#### | | ?????????????????????###?# #?????????### ## | | ????????????????????##]!## #?????????# X | | ????????????????????#"[] # #??????????# | | ????????????????????# / ##????????## ## | | ????????????????????# / ###?????## ##? | | ????????????????????#"[! # ####### #?? | | ????????????????????##!??# #?? | | ?????????????????????????## ##?? | | ??????????????????????????## ##### ##??? | | ????????????????????????###### #???## ##???? | | ????????????????????????# #????## ##????? | | ????????????????????????# #????# #?????? | | ????????????????????????#Y #### ##### ####### | | ????????????????????????# Y#??## | | ????????????????????????# #???## #### ####### | | ????????????????????????# #????# ##??# #?????# | | ????????????????????????# #????# #???# #?????# | | ????????????????????????# #????## ##???# #?????# | | ????????????????????????# #?####? #????# #???### | | ????????????????????????#@ #?# ? #????# #??## | | ??###???????????????????# #?# ? #????# #??# | | ?? #???????????????????# #?# #?##?????# #?## | | ??# #?????????######????# #?# #????????# ### | | ??# #????????## ##???# #?# #?????#### ?# | | ### ###???#### #???# k### #?????# ? ?## # | | ##### """ ##?## ## ###???# #?#??### # | | """ ### # ##?## ######## # | | """ ### | | ##### | | #####???## ## | | ##????????###### ####### ### | | ##??????????????## ##?????## ##?# | | #????????????????## ##???????#####??# """ """ """ | | ??????????????????####???????????????# """ """ """ | | ?????????????????????????????????????# """ """ """ | | ?????????????????????????????????????############# | | ?????????????????????????????????????????????????? | | | | | | | | | | | | | | | +----------------------------------------------------+ Best States ------------- Heat Dissipation 39 Coolant Potential 50 Energy Generation 10 Energy Capacity 250 Matter Stores 300 Matter Capacity 300 Sight Range 16 Terrain Scan Density 10 Evasion (%) 40 Targeting Accuracy 5 Recoil Reduction 2 Item Schematics ----------------- None Robot Schematics ------------------ None Fabricated ------------ Nothing Repaired ---------- Hover Unit | 76% | -10/Materials | Corrupted Studied --------- None Alien Tech Used ----------------- None Achievements -------------- None Challenges ------------ None Game ------ Seed ImpulseMetamassCompressor Manual? 0 Play Time 00:30:50 Cumulative 459.0 hours Start 2026.06.23 @ 16:07:59 End 2026.06.23 @ 16:37:44 Sessions 1 Manual Loads 0 Difficulty Rogue Special Mode None Game No. 132 Rogue 83 Adventurer 49 Explorer 0 Win Type - Total 31 Types 23/0/5/1/2/0/0/0/0/0 Lore% 75 Gallery% 79 Achievement% 50 Wizard Run 0 Options --------- Layout 0 ASCII 0 Keyboard 1 Movement Vi Keybinds 0 Fullscreen 2 Font 16/Tamsyn Map View 89x57 Zoom Use 0% Tactical HUD 1 Map Filters NONE Filters NONE Steam 1 RUN: fc1209a3-a061-489b-9099-ce654388b165